{"text_format":"3","workbook":"xlsx","n_sheets":4,"sheets":["Pirkumu saraksts","Budžeta sadalījums","Uzdevumu saraksts","Kopīgot sarakstu"],"not_rendered":{"charts":2,"images":2,"defined_names":12},"read":"whole","date_system":"1900"}

{"sheet":"Pirkumu saraksts","index":0,"n_rows":25,"n_cols":8,"rows_kept":25,"merged":[[2,1,2,7],[3,1,3,2],[4,4,6,7]]}
[null,"Atpakaļ uz skolu","Plānotājs"]
[]
[null,"Sekojiet līdzi iepirkšanās progresam attiecībā uz budžeta kategoriju summām, kas ievadītas budžeta sadalījumā."]
[null,"Budžeta kopsavilkums",null,null,{"$f":"\"Iegādes norise (\"&COUNTIFS(Kontrolsaraksts[Nopirkts], \">0\")&\" no \"&COUNTIFS(Kontrolsaraksts[Jāiegādājas], \">0\")&\")\"","v":"Iegādes norise (1 no 6)"}]
[null,"Budžets",{"v":1500,"d":"1,500.00EUR "},null,{"$f":"IFERROR(COUNTIFS(Kontrolsaraksts[Jāiegādājas],\">0\",Kontrolsaraksts[Nopirkts],\">0\")/IegādājamoVienumuSumma,0)","v":{"v":0.16666666666666666,"d":"17%"}}]
[null,"Iepirkumu saraksta kopsumma",{"$f":"IFERROR(SUM(KontrolsarakstsKopsumma), \"\")","v":{"v":365,"d":"365.00EUR "}}]
[null,"Atlikusī naudas summa",{"$f":"IFERROR(C5-C6, \"\")","v":{"v":1135,"d":"1,135.00EUR "}}]
[null,"Pirkumu saraksts"]
[null,"Vienība","Kategorija","Daudz.","Jāiegādājas","Cena","Nopirkts","Kopējās izmaksas"]
[null,"Matemātika","Mācību grāmatas",1,1,{"v":55,"d":"55.00EUR "},1,{"$f":"IFERROR(Kontrolsaraksts[Daudz.]*Kontrolsaraksts[Cena], \"\")","v":{"v":55,"d":"55.00EUR "}}]
[null,"Angļu valoda","Mācību grāmatas",1,1,null,null,{"$f":"IFERROR(Kontrolsaraksts[Daudz.]*Kontrolsaraksts[Cena], \"\")","v":0}]
[null,"Mugursoma","Piederumi",1,null,{"v":30,"d":"30.00EUR "},null,{"$f":"IFERROR(Kontrolsaraksts[Daudz.]*Kontrolsaraksts[Cena], \"\")","v":{"v":30,"d":"30.00EUR "}}]
[null,"Kalkulators","Piederumi",1,{"$nulls":3},{"$f":"IFERROR(Kontrolsaraksts[Daudz.]*Kontrolsaraksts[Cena], \"\")","v":0}]
[null,"Marķieri","Piederumi",3,{"$nulls":3},{"$f":"IFERROR(Kontrolsaraksts[Daudz.]*Kontrolsaraksts[Cena], \"\")","v":0}]
[null,"Uniforma","Apģērbs",2,1,{"v":100,"d":"100.00EUR "},null,{"$f":"IFERROR(Kontrolsaraksts[Daudz.]*Kontrolsaraksts[Cena], \"\")","v":{"v":200,"d":"200.00EUR "}}]
[null,"Krekls, pogājams","Apģērbs",4,{"$nulls":3},{"$f":"IFERROR(Kontrolsaraksts[Daudz.]*Kontrolsaraksts[Cena], \"\")","v":0}]
[null,"Krekls, t-krekli","Apģērbs",5,{"$nulls":3},{"$f":"IFERROR(Kontrolsaraksts[Daudz.]*Kontrolsaraksts[Cena], \"\")","v":0}]
[null,"Šorti","Apģērbs",2,{"$nulls":3},{"$f":"IFERROR(Kontrolsaraksts[Daudz.]*Kontrolsaraksts[Cena], \"\")","v":0}]
[null,"Čības","Apģērbs",2,1,null,null,{"$f":"IFERROR(Kontrolsaraksts[Daudz.]*Kontrolsaraksts[Cena], \"\")","v":0}]
[null,"Zeķes","Apģērbs",10,{"$nulls":3},{"$f":"IFERROR(Kontrolsaraksts[Daudz.]*Kontrolsaraksts[Cena], \"\")","v":0}]
[null,"Pavasara virsjaka","Apģērbs",1,1,{"v":80,"d":"80.00EUR "},null,{"$f":"IFERROR(Kontrolsaraksts[Daudz.]*Kontrolsaraksts[Cena], \"\")","v":{"v":80,"d":"80.00EUR "}}]
[null,"Džemperi","Apģērbs",1,{"$nulls":3},{"$f":"IFERROR(Kontrolsaraksts[Daudz.]*Kontrolsaraksts[Cena], \"\")","v":0}]
[null,"Baikas","Apģērbs",1,{"$nulls":3},{"$f":"IFERROR(Kontrolsaraksts[Daudz.]*Kontrolsaraksts[Cena], \"\")","v":0}]
[null,"Apakšveļa","Apģērbs",10,{"$nulls":3},{"$f":"IFERROR(Kontrolsaraksts[Daudz.]*Kontrolsaraksts[Cena], \"\")","v":0}]
[null,"Ziemas virsjaku","Apģērbs",1,1,null,null,{"$f":"IFERROR(Kontrolsaraksts[Daudz.]*Kontrolsaraksts[Cena], \"\")","v":0}]

{"sheet":"Budžeta sadalījums","index":1,"n_rows":6,"n_cols":3,"rows_kept":6}
[null,"Budžeta sadalījums"]
[null,"Pievienojiet kategorijas un budžeta summas izsekošanai attiecībā uz iepirkšanās sarakstu."]
[null,"Kategorija","Kopējās izmaksas"]
[null,"Apģērbs",{"$f":"IFERROR(SUMIFS(Kontrolsaraksts[Kopējās izmaksas],Kontrolsaraksts[Kategorija],Kategorija[Kategorija]), \"\")","v":{"v":280,"d":"280.00EUR "}}]
[null,"Piederumi",{"$f":"IFERROR(SUMIFS(Kontrolsaraksts[Kopējās izmaksas],Kontrolsaraksts[Kategorija],Kategorija[Kategorija]), \"\")","v":{"v":30,"d":"30.00EUR "}}]
[null,"Mācību grāmatas",{"$f":"IFERROR(SUMIFS(Kontrolsaraksts[Kopējās izmaksas],Kontrolsaraksts[Kategorija],Kategorija[Kategorija]), \"\")","v":{"v":55,"d":"55.00EUR "}}]

{"sheet":"Uzdevumu saraksts","index":2,"n_rows":22,"n_cols":3,"rows_kept":22}
[null,"Uzdevumu saraksts"]
[null,"Sekojiet līdzi visām darbībām, kas jāpaveic pirms skolas sākuma."]
[null,"Pabeigts","Uzdevums"]
[null,"x","Aizpildiet visas reģistrācijas formas"]
[null,null,"Ja nepieciešams, ieplānojiet skolas fizisku un vizuālu pārbaudi"]
[null,null,"Pārbaudiet visas nepieciešamās vakcinācijas"]
[null,null,"Iegūstiet no ārsta devu norādījumus attiecībā uz visiem nepieciešamajiem medikamentiem"]
[null,null,"Pārskatīt skolas apģērba kodu"]
[null,null,"Iegūt skolas piederumu sarakstu"]
[null,null,"Iepazīties ar skolotāju"]
[null,null,"Noteikt skolotāja vēlamo saziņas metodi (tālrunis, e-pasts, rakstiski ziņojumi)"]
[null,null,"Skolas iepazīšana kopā ar bērnu"]
[null,null,"Palīdziet savam bērnam iegaumēt jūsu mājas tālruni, tālruni darbā un mājas adresi"]
[null,null,"Noorganizējiet transportu, norādiet drošu tikšanās vietu un izmēģiniet šo ikdienas procesu"]
[null,null,"Ja pārvietošanās notiks ar kājām, vairākas reizes veiciet maršrutu uz skolu un atpakaļ kopā ar bērnu"]
[null,null,"Ja bērns būs līdzbraucējs automobilī, iepazīstiniet viņu ar visiem automobiļa vadītājiem"]
[null,null,"Ja pārvietošanās notiks ar autobusu, nosakiet laikus un autobusu pieturas"]
[null,null,"Noorganizējiet bērnudārza/pēcskolas aprūpes izmantošanu"]
[null,null,"Ieplānojiet ēdienkartes brokastīm, skolas uzkodām, līdzņemamajām pusdienām un pēcskolas uzkodām"]
[null,null,"Nosakiet mājasdarbu atrašanās vietu un grafiku"]
[null,null,"Izveidojiet gulētiešanas režīmu vismaz divas nedēļas pirms mācību sākuma"]
[null,null,"Sagatavojiet visu skolas pasākumu un aktivitāšu kalendāru"]

{"sheet":"Kopīgot sarakstu","index":3,"n_rows":4,"n_cols":5,"rows_kept":4}
[null,"Kopīgot sarakstu",null,null,"Koplietojiet šo sarakstu ar citām personām, lai tās varētu sniegt savu ieguldījumu. Atlasiet Kopīgot augšējā labajā stūrī vai nospiediet taustiņu ALT un pēc tam nospiediet taustiņus YV. Saglabājiet failu pakalpojumā OneDrive un nosūtiet saiti saviem draugiem."]
[null,"Nosaukums","E-pasts","Kopīgots?"]
[null,"Persona 1","someone@email.com","Jā"]
[null,"Persona 2","someone@email.com","Nē"]